{"text_format":"3","workbook":"xlsx","n_sheets":2,"sheets":["ROZPOCZĘCIE","OSOBISTY BUDŻET MIESIĘCZNY"],"read":"whole","date_system":"1900"}

{"sheet":"ROZPOCZĘCIE","index":0,"n_rows":7,"n_cols":2,"rows_kept":7}
[null,"INFORMACJE O TYM SZABLONIE"]
[null,"Ten arkusz osobisty budżet miesięczny umożliwia śledzenie planowanego i rzeczywistego przychodu miesięcznego oraz kosztów planowanych i rzeczywistych."]
[null,"W odpowiednich tabelach wprowadź wydatki w różnych kategoriach."]
[null,"Saldo planowane, saldo rzeczywiste i różnica są obliczane automatycznie."]
[null,"Uwaga: "]
[null,"W kolumnie A w arkuszu OSOBISTY BUDŻET MIESIĘCZNY podano dodatkowe instrukcje. Ten tekst celowo został ukryty. Aby usunąć tekst, zaznacz kolumnę A, a następnie naciśnij klawisz DELETE. Aby odkryć tekst, zaznacz kolumnę A, a następnie zmień kolor czcionki."]
[null,"Aby uzyskać więcej informacji o tabelach w tym arkuszu, w tabeli naciśnij klawisz SHIFT, a następnie F10, wybierz pozycję TABELA, a następnie TEKST ALTERNATYWNY."]

{"sheet":"OSOBISTY BUDŻET MIESIĘCZNY","index":1,"n_rows":64,"n_cols":10,"rows_kept":64,"merged":[[3,1,5,1],[3,2,3,3],[3,6,4,8],[3,9,4,9],[4,2,4,3],[5,2,5,3],[5,6,6,8],[5,9,6,9],[7,1,9,1],[7,2,7,3],[7,6,8,8],[7,9,8,9],[8,2,8,3],[9,2,9,3],[22,6,22,9],[23,1,23,4],[31,6,31,9],[33,1,33,4],[38,6,38,9],[40,1,40,4],[44,6,44,9],[46,1,46,4],[50,6,50,9],[54,1,54,4],[57,6,57,9],[58,6,59,8],[58,9,59,9],[60,6,61,8],[60,9,61,9],[62,6,63,8],[62,9,63,9],[64,1,64,4]]}
["W tym arkuszu utwórz osobisty budżet miesięczny. W komórkach w tej kolumnie podano przydatne instrukcje na temat korzystania z tego arkusza. Naciśnij strzałkę w dół, aby rozpocząć pracę."]
["W komórce po prawej stronie znajduje się tytuł tego arkusza. Dalsze instrukcje znajdują się w komórce A4.","OSOBISTY BUDŻET MIESIĘCZNY"]
[]
["W komórce po prawej stronie znajduje się etykieta Planowany przychód miesięczny. W komórce E4 wprowadź przychód 1, a w komórce E5 — przychód dodatkowy, aby obliczyć suma przychodu miesięcznego w komórce E6. Dalsze instrukcje znajdują się w komórce A6.","PLANOWANY PRZYCHÓD MIESIĘCZNY","Przychód 1",null,{"v":4300,"d":"4,300.00 zł"},null,"SALDO PLANOWANE \n(Przychód planowany minus wydatki)",null,null,{"$f":"E6-J59","v":{"v":3405,"d":"3,405.00 zł"}}]
[null,null,"Przychód dodatkowy",null,{"v":300,"d":"300.00 zł"}]
["Saldo planowane, jest obliczane automatycznie w komórce J4, saldo rzeczywiste — J6, a różnica — J8. Dalsze instrukcje znajdują się w komórce A8.",null,"Suma przychodu miesięcznego",null,{"$f":"SUM(E4:E5)","v":{"v":4600,"d":"4,600.00 zł"}},null,"SALDO RZECZYWISTE \n(Przychód rzeczywisty minus wydatki)",null,null,{"$f":"E10-J61","v":{"v":3064,"d":"3,064.00 zł"}}]
[]
["W komórce po prawej stronie znajduje się etykieta Rzeczywisty przychód miesięczny. W komórce E8 wprowadź przychód 1, a w komórce E9 — przychód dodatkowy, aby obliczyć suma przychodu miesięcznego w komórce E10. Dalsze instrukcje znajdują się w komórce A12.","RZECZYWISTY PRZYCHÓD MIESIĘCZNY","Przychód 1",null,{"v":4000,"d":"4,000.00 zł"},null,"RÓŻNICA \n(Rzeczywiste minus planowane)",null,null,{"$f":"J6-J4","v":{"v":-341,"d":"-341.00 zł"}}]
[null,null,"Przychód dodatkowy",null,{"v":300,"d":"300.00 zł"}]
[null,null,"Suma przychodu miesięcznego",null,{"$f":"SUM(E8:E9)","v":{"v":4300,"d":"4,300.00 zł"}}]
[]
["Wprowadź szczegóły w tabelach Utrzymanie domu zaczynającej się w komórce po prawej stronie oraz Rozrywka zaczynającej się w komórce G12. Dalsze instrukcje znajdują się w komórce A25.","UTRZYMANIE DOMU","Koszt planowany","Koszt rzeczywisty","Różnica",null,"ROZRYWKA","Koszt planowany","Koszt rzeczywisty","Różnica"]
[null,"Spłata kredytu lub czynsz",{"v":1000,"d":"1,000.00 zł"},{"v":1000,"d":"1,000.00 zł"},{"$f":"Utrzymanie_domu[[#This Row],[Koszt planowany]]-Utrzymanie_domu[[#This Row],[Koszt rzeczywisty]]","v":{"v":0,"d":"0.00 zł"}},null,"Filmy wideo/DVD",null,null,{"$f":"Rozrywka[[#This Row],[Koszt planowany]]-Rozrywka[[#This Row],[Koszt rzeczywisty]]","v":{"v":0,"d":"0.00 zł"}}]
[null,"Telefon",{"v":54,"d":"54.00 zł"},{"v":100,"d":"100.00 zł"},{"$f":"Utrzymanie_domu[[#This Row],[Koszt planowany]]-Utrzymanie_domu[[#This Row],[Koszt rzeczywisty]]","v":{"v":-46,"d":"-46.00 zł"}},null,"Płyty CD",null,null,{"$f":"Rozrywka[[#This Row],[Koszt planowany]]-Rozrywka[[#This Row],[Koszt rzeczywisty]]","v":{"v":0,"d":"0.00 zł"}}]
[null,"Energia elektryczna",{"v":44,"d":"44.00 zł"},{"v":56,"d":"56.00 zł"},{"$f":"Utrzymanie_domu[[#This Row],[Koszt planowany]]-Utrzymanie_domu[[#This Row],[Koszt rzeczywisty]]","v":{"v":-12,"d":"-12.00 zł"}},null,"Kino",null,null,{"$f":"Rozrywka[[#This Row],[Koszt planowany]]-Rozrywka[[#This Row],[Koszt rzeczywisty]]","v":{"v":0,"d":"0.00 zł"}}]
[null,"Gaz",{"v":22,"d":"22.00 zł"},{"v":28,"d":"28.00 zł"},{"$f":"Utrzymanie_domu[[#This Row],[Koszt planowany]]-Utrzymanie_domu[[#This Row],[Koszt rzeczywisty]]","v":{"v":-6,"d":"-6.00 zł"}},null,"Koncerty",null,null,{"$f":"Rozrywka[[#This Row],[Koszt planowany]]-Rozrywka[[#This Row],[Koszt rzeczywisty]]","v":{"v":0,"d":"0.00 zł"}}]
[null,"Woda i ścieki",{"v":8,"d":"8.00 zł"},{"v":8,"d":"8.00 zł"},{"$f":"Utrzymanie_domu[[#This Row],[Koszt planowany]]-Utrzymanie_domu[[#This Row],[Koszt rzeczywisty]]","v":{"v":0,"d":"0.00 zł"}},null,"Imprezy sportowe",null,null,{"$f":"Rozrywka[[#This Row],[Koszt planowany]]-Rozrywka[[#This Row],[Koszt rzeczywisty]]","v":{"v":0,"d":"0.00 zł"}}]
[null,"Telewizja kablowa",{"v":34,"d":"34.00 zł"},{"v":34,"d":"34.00 zł"},{"$f":"Utrzymanie_domu[[#This Row],[Koszt planowany]]-Utrzymanie_domu[[#This Row],[Koszt rzeczywisty]]","v":{"v":0,"d":"0.00 zł"}},null,"Teatr",null,null,{"$f":"Rozrywka[[#This Row],[Koszt planowany]]-Rozrywka[[#This Row],[Koszt rzeczywisty]]","v":{"v":0,"d":"0.00 zł"}}]
[null,"Wywóz śmieci",{"v":10,"d":"10.00 zł"},{"v":10,"d":"10.00 zł"},{"$f":"Utrzymanie_domu[[#This Row],[Koszt planowany]]-Utrzymanie_domu[[#This Row],[Koszt rzeczywisty]]","v":{"v":0,"d":"0.00 zł"}},null,"Inne",null,null,{"$f":"Rozrywka[[#This Row],[Koszt planowany]]-Rozrywka[[#This Row],[Koszt rzeczywisty]]","v":{"v":0,"d":"0.00 zł"}}]
[null,"Konserwacja lub naprawy",{"v":23,"d":"23.00 zł"},{"v":0,"d":"0.00 zł"},{"$f":"Utrzymanie_domu[[#This Row],[Koszt planowany]]-Utrzymanie_domu[[#This Row],[Koszt rzeczywisty]]","v":{"v":23,"d":"23.00 zł"}},null,"Inne",null,null,{"$f":"Rozrywka[[#This Row],[Koszt planowany]]-Rozrywka[[#This Row],[Koszt rzeczywisty]]","v":{"v":0,"d":"0.00 zł"}}]
[null,"Materiały",{"v":0,"d":"0.00 zł"},{"v":0,"d":"0.00 zł"},{"$f":"Utrzymanie_domu[[#This Row],[Koszt planowany]]-Utrzymanie_domu[[#This Row],[Koszt rzeczywisty]]","v":{"v":0,"d":"0.00 zł"}},null,"Inne",null,null,{"$f":"Rozrywka[[#This Row],[Koszt planowany]]-Rozrywka[[#This Row],[Koszt rzeczywisty]]","v":{"v":0,"d":"0.00 zł"}}]
[null,"Inne",{"v":0,"d":"0.00 zł"},{"v":0,"d":"0.00 zł"},{"$f":"Utrzymanie_domu[[#This Row],[Koszt planowany]]-Utrzymanie_domu[[#This Row],[Koszt rzeczywisty]]","v":{"v":0,"d":"0.00 zł"}},null,"Suma częściowa",null,null,{"$f":"SUBTOTAL(109,Rozrywka[Różnica])","v":{"v":0,"d":"0.00 zł"}}]
[null,"Suma częściowa",null,null,{"$f":"SUBTOTAL(109,Utrzymanie_domu[Różnica])","v":{"v":-41,"d":"-41.00 zł"}}]
[{"$nulls":6},"POŻYCZKI","Koszt planowany","Koszt rzeczywisty","Różnica"]
["Wprowadź szczegóły w tabelach Transport zaczynającej się w komórce po prawej stronie oraz Pożyczki zaczynającej się w komórce G24. Dalsze instrukcje znajdują się w komórce A35.","TRANSPORT","Koszt planowany","Koszt rzeczywisty","Różnica",null,"Osobiste",null,null,{"$f":"Pożyczki[[#This Row],[Koszt planowany]]-Pożyczki[[#This Row],[Koszt rzeczywisty]]","v":{"v":0,"d":"0.00 zł"}}]
[null,"Opłata za samochód",null,null,{"$f":"Transport[[#This Row],[Koszt planowany]]-Transport[[#This Row],[Koszt rzeczywisty]]","v":{"v":0,"d":"0.00 zł"}},null,"Kredyt studencki",null,null,{"$f":"Pożyczki[[#This Row],[Koszt planowany]]-Pożyczki[[#This Row],[Koszt rzeczywisty]]","v":{"v":0,"d":"0.00 zł"}}]
[null,"Opłaty za taksówkę/autobus",null,null,{"$f":"Transport[[#This Row],[Koszt planowany]]-Transport[[#This Row],[Koszt rzeczywisty]]","v":{"v":0,"d":"0.00 zł"}},null,"Karta kredytowa",null,null,{"$f":"Pożyczki[[#This Row],[Koszt planowany]]-Pożyczki[[#This Row],[Koszt rzeczywisty]]","v":{"v":0,"d":"0.00 zł"}}]
[null,"Ubezpieczenie",null,null,{"$f":"Transport[[#This Row],[Koszt planowany]]-Transport[[#This Row],[Koszt rzeczywisty]]","v":{"v":0,"d":"0.00 zł"}},null,"Karta kredytowa",null,null,{"$f":"Pożyczki[[#This Row],[Koszt planowany]]-Pożyczki[[#This Row],[Koszt rzeczywisty]]","v":{"v":0,"d":"0.00 zł"}}]
[null,"Licencjonowanie",null,null,{"$f":"Transport[[#This Row],[Koszt planowany]]-Transport[[#This Row],[Koszt rzeczywisty]]","v":{"v":0,"d":"0.00 zł"}},null,"Karta kredytowa",null,null,{"$f":"Pożyczki[[#This Row],[Koszt planowany]]-Pożyczki[[#This Row],[Koszt rzeczywisty]]","v":{"v":0,"d":"0.00 zł"}}]
[null,"Paliwo",null,null,{"$f":"Transport[[#This Row],[Koszt planowany]]-Transport[[#This Row],[Koszt rzeczywisty]]","v":{"v":0,"d":"0.00 zł"}},null,"Inne",null,null,{"$f":"Pożyczki[[#This Row],[Koszt planowany]]-Pożyczki[[#This Row],[Koszt rzeczywisty]]","v":{"v":0,"d":"0.00 zł"}}]
[null,"Konserwacja",null,null,{"$f":"Transport[[#This Row],[Koszt planowany]]-Transport[[#This Row],[Koszt rzeczywisty]]","v":{"v":0,"d":"0.00 zł"}},null,"Suma częściowa",null,null,{"$f":"SUBTOTAL(109,Pożyczki[Różnica])","v":{"v":0,"d":"0.00 zł"}}]
[null,"Inne",null,null,{"$f":"Transport[[#This Row],[Koszt planowany]]-Transport[[#This Row],[Koszt rzeczywisty]]","v":{"v":0,"d":"0.00 zł"}}]
[null,"Suma częściowa",null,null,{"$f":"SUBTOTAL(109,Transport[Różnica])","v":{"v":0,"d":"0.00 zł"}},null,"PODATKI","Koszt planowany","Koszt rzeczywisty","Różnica"]
[{"$nulls":6},"Państwowe",null,null,{"$f":"Podatki[[#This Row],[Koszt planowany]]-Podatki[[#This Row],[Koszt rzeczywisty]]","v":{"v":0,"d":"0.00 zł"}}]
["Wprowadź szczegóły w tabelach Ubezpieczenie zaczynającej się w komórce po prawej stronie oraz Podatki zaczynającej się w komórce G33. Dalsze instrukcje znajdują się w komórce A42.","UBEZPIECZENIE","Koszt planowany","Koszt rzeczywisty","Różnica",null,"Wojewódzkie",null,null,{"$f":"Podatki[[#This Row],[Koszt planowany]]-Podatki[[#This Row],[Koszt rzeczywisty]]","v":{"v":0,"d":"0.00 zł"}}]
[null,"Dom",null,null,{"$f":"Ubezpieczenie[[#This Row],[Koszt planowany]]-Ubezpieczenie[[#This Row],[Koszt rzeczywisty]]","v":{"v":0,"d":"0.00 zł"}},null,"Lokalne",null,null,{"$f":"Podatki[[#This Row],[Koszt planowany]]-Podatki[[#This Row],[Koszt rzeczywisty]]","v":{"v":0,"d":"0.00 zł"}}]
[null,"Zdrowie",null,null,{"$f":"Ubezpieczenie[[#This Row],[Koszt planowany]]-Ubezpieczenie[[#This Row],[Koszt rzeczywisty]]","v":{"v":0,"d":"0.00 zł"}},null,"Inne",null,null,{"$f":"Podatki[[#This Row],[Koszt planowany]]-Podatki[[#This Row],[Koszt rzeczywisty]]","v":{"v":0,"d":"0.00 zł"}}]
[null,"Życie",null,null,{"$f":"Ubezpieczenie[[#This Row],[Koszt planowany]]-Ubezpieczenie[[#This Row],[Koszt rzeczywisty]]","v":{"v":0,"d":"0.00 zł"}},null,"Suma częściowa",null,null,{"$f":"SUBTOTAL(109,Podatki[Różnica])","v":{"v":0,"d":"0.00 zł"}}]
[null,"Inne",null,null,{"$f":"Ubezpieczenie[[#This Row],[Koszt planowany]]-Ubezpieczenie[[#This Row],[Koszt rzeczywisty]]","v":{"v":0,"d":"0.00 zł"}}]
[null,"Suma częściowa",null,null,{"$f":"SUBTOTAL(109,Ubezpieczenie[Różnica])","v":{"v":0,"d":"0.00 zł"}},null,"OSZCZĘDNOŚCI LUB INWESTYCJE","Koszt planowany","Koszt rzeczywisty","Różnica"]
[{"$nulls":6},"Fundusz emerytalny",null,null,{"$f":"Oszczędności[[#This Row],[Koszt planowany]]-Oszczędności[[#This Row],[Koszt rzeczywisty]]","v":{"v":0,"d":"0.00 zł"}}]
["Wprowadź szczegóły w tabelach Żywność zaczynającej się w komórce po prawej stronie oraz Oszczędności zaczynającej się w komórce G40. Dalsze instrukcje znajdują się w komórce A48.","ŻYWNOŚĆ","Koszt planowany","Koszt rzeczywisty","Różnica",null,"Fundusz inwestycyjny",null,null,{"$f":"Oszczędności[[#This Row],[Koszt planowany]]-Oszczędności[[#This Row],[Koszt rzeczywisty]]","v":{"v":0,"d":"0.00 zł"}}]
[null,"Artykuły spożywcze",null,null,{"$f":"Żywność[[#This Row],[Koszt planowany]]-Żywność[[#This Row],[Koszt rzeczywisty]]","v":{"v":0,"d":"0.00 zł"}},null,"Inne",null,null,{"$f":"Oszczędności[[#This Row],[Koszt planowany]]-Oszczędności[[#This Row],[Koszt rzeczywisty]]","v":{"v":0,"d":"0.00 zł"}}]
[null,"Restauracje",null,null,{"$f":"Żywność[[#This Row],[Koszt planowany]]-Żywność[[#This Row],[Koszt rzeczywisty]]","v":{"v":0,"d":"0.00 zł"}},null,"Suma częściowa",null,null,{"$f":"SUBTOTAL(109,Oszczędności[Różnica])","v":{"v":0,"d":"0.00 zł"}}]
[null,"Inne",null,null,{"$f":"Żywność[[#This Row],[Koszt planowany]]-Żywność[[#This Row],[Koszt rzeczywisty]]","v":{"v":0,"d":"0.00 zł"}}]
[null,"Suma częściowa",null,null,{"$f":"SUBTOTAL(109,Żywność[Różnica])","v":{"v":0,"d":"0.00 zł"}},null,"PREZENTY I DOTACJE","Koszt planowany","Koszt rzeczywisty","Różnica"]
[{"$nulls":6},"Cele charytatywne 1",null,null,{"$f":"Prezenty[[#This Row],[Koszt planowany]]-Prezenty[[#This Row],[Koszt rzeczywisty]]","v":{"v":0,"d":"0.00 zł"}}]
["Wprowadź szczegóły w tabelach Zwierzęta zaczynającej się w komórce po prawej stronie oraz Prezenty zaczynającej się w komórce G46. Dalsze instrukcje znajdują się w komórce A56.","ZWIERZĘTA","Koszt planowany","Koszt rzeczywisty","Różnica",null,"Cele charytatywne 2",null,null,{"$f":"Prezenty[[#This Row],[Koszt planowany]]-Prezenty[[#This Row],[Koszt rzeczywisty]]","v":{"v":0,"d":"0.00 zł"}}]
[null,"Żywność",null,null,{"$f":"Zwierzęta[[#This Row],[Koszt planowany]]-Zwierzęta[[#This Row],[Koszt rzeczywisty]]","v":{"v":0,"d":"0.00 zł"}},null,"Cele charytatywne 3",null,null,{"$f":"Prezenty[[#This Row],[Koszt planowany]]-Prezenty[[#This Row],[Koszt rzeczywisty]]","v":{"v":0,"d":"0.00 zł"}}]
[null,"Artykuły medyczne",null,null,{"$f":"Zwierzęta[[#This Row],[Koszt planowany]]-Zwierzęta[[#This Row],[Koszt rzeczywisty]]","v":{"v":0,"d":"0.00 zł"}},null,"Suma częściowa",null,null,{"$f":"SUBTOTAL(109,Prezenty[Różnica])","v":{"v":0,"d":"0.00 zł"}}]
[null,"Pielęgnacja",null,null,{"$f":"Zwierzęta[[#This Row],[Koszt planowany]]-Zwierzęta[[#This Row],[Koszt rzeczywisty]]","v":{"v":0,"d":"0.00 zł"}}]
[null,"Zabawki",null,null,{"$f":"Zwierzęta[[#This Row],[Koszt planowany]]-Zwierzęta[[#This Row],[Koszt rzeczywisty]]","v":{"v":0,"d":"0.00 zł"}},null,"PRAWNE","Koszt planowany","Koszt rzeczywisty","Różnica"]
[null,"Inne",null,null,{"$f":"Zwierzęta[[#This Row],[Koszt planowany]]-Zwierzęta[[#This Row],[Koszt rzeczywisty]]","v":{"v":0,"d":"0.00 zł"}},null,"Adwokat",null,null,{"$f":"Prawne[[#This Row],[Koszt planowany]]-Prawne[[#This Row],[Koszt rzeczywisty]]","v":{"v":0,"d":"0.00 zł"}}]
[null,"Suma częściowa",null,null,{"$f":"SUBTOTAL(109,Zwierzęta[Różnica])","v":{"v":0,"d":"0.00 zł"}},null,"Alimenty",null,null,{"$f":"Prawne[[#This Row],[Koszt planowany]]-Prawne[[#This Row],[Koszt rzeczywisty]]","v":{"v":0,"d":"0.00 zł"}}]
[{"$nulls":6},"Opłaty sądowe",null,null,{"$f":"Prawne[[#This Row],[Koszt planowany]]-Prawne[[#This Row],[Koszt rzeczywisty]]","v":{"v":0,"d":"0.00 zł"}}]
["Wprowadź szczegóły w tabelach Wydatki osobiste zaczynającej się w komórce po prawej stronie oraz Prawne zaczynającej się w komórce G52. Dalsze instrukcje znajdują się w komórce A59.","WYDATKI OSOBISTE","Koszt planowany","Koszt rzeczywisty","Różnica",null,"Inne",null,null,{"$f":"Prawne[[#This Row],[Koszt planowany]]-Prawne[[#This Row],[Koszt rzeczywisty]]","v":{"v":0,"d":"0.00 zł"}}]
[null,"Artykuły medyczne",null,null,{"$f":"Wydatki_osobiste[[#This Row],[Koszt planowany]]-Wydatki_osobiste[[#This Row],[Koszt rzeczywisty]]","v":{"v":0,"d":"0.00 zł"}},null,"Suma częściowa",null,null,{"$f":"SUBTOTAL(109,Prawne[Różnica])","v":{"v":0,"d":"0.00 zł"}}]
[null,"Włosy/paznokcie",null,null,{"$f":"Wydatki_osobiste[[#This Row],[Koszt planowany]]-Wydatki_osobiste[[#This Row],[Koszt rzeczywisty]]","v":{"v":0,"d":"0.00 zł"}}]
["Suma kosztów planowanych jest obliczana automatycznie w komórce J59, suma kosztów rzeczywistych — J61, a suma różnic — J63.","Ubrania",null,null,{"$f":"Wydatki_osobiste[[#This Row],[Koszt planowany]]-Wydatki_osobiste[[#This Row],[Koszt rzeczywisty]]","v":{"v":0,"d":"0.00 zł"}},null,"SUMA KOSZTÓW PLANOWANYCH",null,null,{"$f":"SUBTOTAL(109,Utrzymanie_domu[Koszt planowany],Transport[Koszt planowany],Ubezpieczenie[Koszt planowany],Żywność[Koszt planowany],Zwierzęta[Koszt planowany],Wydatki_osobiste[Koszt planowany],Rozrywka[Koszt planowany],Pożyczki[Koszt planowany],Podatki[Koszt planowany],Oszczędności[Koszt planowany],Prezenty[Koszt planowany],Prawne[Koszt planowany])","v":{"v":1195,"d":"1,195.00 zł"}}]
[null,"Pralnia chemiczna",null,null,{"$f":"Wydatki_osobiste[[#This Row],[Koszt planowany]]-Wydatki_osobiste[[#This Row],[Koszt rzeczywisty]]","v":{"v":0,"d":"0.00 zł"}}]
[null,"Klub sportowy",null,null,{"$f":"Wydatki_osobiste[[#This Row],[Koszt planowany]]-Wydatki_osobiste[[#This Row],[Koszt rzeczywisty]]","v":{"v":0,"d":"0.00 zł"}},null,"SUMA KOSZTÓW RZECZYWISTYCH",null,null,{"$f":"SUBTOTAL(109,Utrzymanie_domu[Koszt rzeczywisty],Transport[Koszt rzeczywisty],Ubezpieczenie[Koszt rzeczywisty],Żywność[Koszt rzeczywisty],Zwierzęta[Koszt rzeczywisty],Wydatki_osobiste[Koszt rzeczywisty],Rozrywka[Koszt rzeczywisty],Pożyczki[Koszt rzeczywisty],Podatki[Koszt rzeczywisty],Oszczędności[Koszt rzeczywisty],Prezenty[Koszt rzeczywisty],Prawne[Koszt rzeczywisty])","v":{"v":1236,"d":"1,236.00 zł"}}]
[null,"Opłaty na cele organizacji",null,null,{"$f":"Wydatki_osobiste[[#This Row],[Koszt planowany]]-Wydatki_osobiste[[#This Row],[Koszt rzeczywisty]]","v":{"v":0,"d":"0.00 zł"}}]
[null,"Inne",null,null,{"$f":"Wydatki_osobiste[[#This Row],[Koszt planowany]]-Wydatki_osobiste[[#This Row],[Koszt rzeczywisty]]","v":{"v":0,"d":"0.00 zł"}},null,"SUMA RÓŻNIC",null,null,{"$f":"J59-J61","v":{"v":-41,"d":"-41.00 zł"}}]
[null,"Suma częściowa",null,null,{"$f":"SUBTOTAL(109,Wydatki_osobiste[Różnica])","v":{"v":0,"d":"0.00 zł"}}]